bitfinex/quotes_ETHUSD_20240610
["timestamp","ask_amount","ask_price","bid_price","bid_amount"]
[1718034401832,2.70662,3694.7,3693.8,2.70721]
[1718034402546,1.707,3695.2,3694.0,2.70706]
[1718034402547,2.70641,3695.0,3694.0,2.70706]
[1718034402699,0.441341,3694.9,3694.0,2.70706]
[1718034403138,0.441316,3695.3,3693.5,11.76975]
[1718034403305,3.29098371,3695.4,3694.3,2.70686]
[1718034403499,2.70613,3695.4,3694.3,2.70686]
[1718034405138,2.70613,3695.4,3694.5,2.70666]
[1718034405734,2.70587,3695.7,3694.5,2.70666]
[1718034405918,0.441287,3695.6,3694.5,2.70666]
[1718034407630,2.70599,3695.5,3694.5,2.70666]
[1718034408738,2.70599,3695.5,3694.7,2.70653]
[1718034410170,2.70599,3695.5,3694.4,2.70675]
[1718034412528,1.707,3695.9,3694.4,2.70675]
[1718034412529,2.70617,3695.3,3694.4,2.70675]
[1718034414473,2.70631,3695.1,3694.4,2.70675]
[1718034418724,2.70646,3694.9,3694.0,8.70002]
[1718034419239,2.70659,3694.7,3694.0,5.993]
[1718034419675,2.70659,3694.7,3694.0,7.455793]
[1718034420924,2.70638,3695.0,3694.1,2.707]
[1718034421151,2.70652,3694.8,3694.1,2.707]
[1718034422561,2.70633,3695.1,3694.1,2.707]
[1718034422760,2.70633,3695.1,3694.2,2.9189]
[1718034422926,2.70633,3695.1,3694.3,1.3081693]
[1718034423540,2.70646,3694.9,3694.3,1.3081693]
[1718034423794,2.70646,3694.9,3694.2,2.9189]
[1718034425456,2.70626,3695.2,3694.3,2.70686]
[1718034427845,2.70626,3695.2,3694.4,3.0439]
[1718034428579,2.70626,3695.2,3694.5,2.70671]
[1718034428984,2.70605,3695.5,3694.4,3.0439]
[1718034429277,2.70605,3695.5,3694.5,3.30439]
[1718034429441,2.70605,3695.5,3694.9,2.7064]
[1718034432682,2.70605,3695.5,3694.6,5.6703]
[1718034433663,2.70605,3695.5,3694.8,2.70649]
[1718034434354,2.70581,3695.8,3695.0,2.70634]
[1718034434659,2.70581,3695.8,3695.1,2.9708]
[1718034435187,2.70561,3696.1,3695.1,2.9708]
[1718034435349,2.70561,3696.1,3695.2,3.0]
[1718034435551,2.70561,3696.1,3695.3,0.59708]
[1718034436858,2.70561,3696.1,3695.4,2.70605]
[1718034440172,1.707,3696.5,3694.9,5.993]
[1718034440371,1.707,3696.1,3694.5,2.8589]
[1718034440593,2.70624,3695.2,3694.5,5.5656]
[1718034442905,0.006,3697.1,3696.2,3.0835]
[1718034443077,2.70411,3698.1,3696.7,2.70505]
[1718034443415,4.38904893,3698.6,3696.8,3.0]
[1718034443416,2.70432,3697.8,3696.8,3.0]
[1718034443701,2.70432,3697.8,3696.3,6.384261]
[1718034444805,2.70432,3697.8,3696.6,2.70516]
[1718034444971,2.70432,3697.8,3696.7,3.270516]
[1718034446670,2.70432,3697.8,3696.8,2.70501]
[1718034448308,2.70406,3698.2,3697.1,2.70479]
[1718034450772,2.70432,3697.8,3696.8,2.70504]
[1718034450973,0.27641068,3697.7,3696.8,2.70504]
[1718034452404,2.70432,3697.8,3696.8,2.70504]
[1718034453613,2.70432,3697.8,3697.0,2.70483]
[1718034453988,2.70407,3698.2,3697.0,2.70483]
[1718034454314,2.70422,3698.0,3697.0,2.70483]
[1718034455692,2.70433,3697.8,3697.0,2.70483]
[1718034459526,2.686,3698.6,3696.7,0.270516]
[1718034459527,2.70408,3698.2,3697.2,2.70468]
[1718034459683,2.7042,3698.0,3697.2,2.70468]
[1718034460379,2.686,3698.6,3697.2,2.70468]
[1718034460584,2.70432,3697.8,3697.2,2.70468]
[1718034461424,1.8668,3697.7,3696.9,2.70494]
[1718034461930,2.70447,3697.6,3696.9,2.70494]
[1718034463338,2.70447,3697.6,3696.7,6.263516]
[1718034464499,2.70447,3697.6,3696.8,2.70503]
[1718034466322,2.70447,3697.6,3696.8,3.1732846]
[1718034466529,2.70447,3697.6,3696.8,2.70503]
[1718034467153,2.70447,3697.6,3697.0,2.70485]
[1718034467998,2.7640268,3697.9,3697.0,2.70485]
[1718034469402,2.7640268,3697.9,3697.2,2.70469]
[1718034470722,0.0597868,3697.9,3697.2,2.70469]
[1718034471032,0.0597868,3697.9,3697.4,2.70457]
[1718034472001,0.0597868,3697.9,3697.6,2.70442]
[1718034486310,0.0597868,3697.9,3697.8,1.707]
[1718034486468,0.0597868,3697.9,3697.8,4.4399]
[1718034487107,0.0597868,3697.9,3697.8,2.7329]
[1718034487268,0.0597868,3697.9,3697.8,3.547078]
[1718034487492,0.0597868,3697.9,3697.8,0.814178]
[1718034487917,0.0597868,3697.9,3697.6,2.70442]
[1718034493511,0.0597868,3697.9,3697.8,4.41131]
[1718034494128,0.0597868,3697.9,3697.8,2.70431]
[1718034499615,0.0597868,3697.9,3697.3,2.743]
[1718034499811,0.0597868,3697.9,3697.2,0.270469]
[1718034499812,0.0597868,3697.9,3697.5,2.70448]
[1718034500653,0.0597868,3697.9,3697.1,2.70477]
[1718034500856,2.70432,3697.8,3697.1,2.70477]
[1718034501423,2.70432,3697.8,3696.9,5.993]
[1718034501625,2.70432,3697.8,3697.0,3.6017116]
[1718034502664,0.0597868,3697.9,3697.2,2.70472]
[1718034503452,0.0597868,3697.9,3697.0,1.1889806]
[1718034503661,0.0597868,3697.9,3697.4,2.70457]
[1718034505277,0.0597868,3697.9,3697.6,2.70438]
[1718034505457,0.0597868,3697.9,3697.7,0.270438]
[1718034509546,0.0597868,3697.9,3697.3,2.70462]
[1718034509888,0.0597868,3697.9,3697.5,2.70451]
[1718034512873,0.0597868,3697.9,3697.3,2.83]
[1718034512874,0.0597868,3697.9,3697.7,2.70431]
[1718034518930,0.0597868,3697.9,3697.8,0.711]
[1718034520344,0.0597868,3697.9,3697.7,2.70431]
[1718034520513,0.0597868,3697.9,3697.7,3.685741]
[1718034521149,0.0597868,3697.9,3697.7,2.974741]
[1718034522158,0.0597868,3697.9,3697.8,0.711]
[1718034522513,0.0597868,3697.9,3697.7,2.974741]
[1718034522719,0.0597868,3697.9,3697.8,0.711]
[1718034522958,0.0597868,3697.9,3697.8,1.0795741]
[1718034524809,0.0597868,3697.9,3697.8,3.8152741]
[1718034525439,0.0597868,3697.9,3697.8,1.0795741]
[1718034529163,0.0597868,3697.9,3697.8,0.3685741]
[1718034529462,0.0597868,3697.9,3697.8,1.0795741]
[1718034530944,0.0597868,3697.9,3697.8,0.3685741]
[1718034531146,0.0597868,3697.9,3697.8,0.711]
[1718034532235,0.0597868,3697.9,3697.7,2.974741]
[1718034532436,0.0597868,3697.9,3697.8,0.711]
[1718034532731,0.0597868,3697.9,3697.7,2.974741]
[1718034533122,0.0597868,3697.9,3697.8,0.711]
[1718034533520,2.34310345,3700.2,3697.8,0.711]
[1718034533723,2.34310345,3700.2,3700.1,0.711]
[1718034533969,2.34310345,3700.3,3699.5,2.70305]
[1718034534152,0.23431035,3700.2,3699.5,2.70305]
[1718034534334,0.23431035,3700.2,3699.8,0.711]
[1718034534335,2.8938,3700.2,3699.8,0.711]
[1718034534723,2.8938,3700.2,3699.0,2.70336]
[1718034534926,2.70204,3701.0,3699.4,2.70313]
[1718034535149,2.70204,3701.0,3699.9,1.799]
[1718034535753,2.8938,3701.2,3699.9,1.799]
[1718034535946,0.559548,3701.1,3699.9,1.799]
[1718034536759,0.559548,3701.1,3700.0,2.70269]
[1718034537975,3.261508,3701.1,3699.5,7.50199]
[1718034538171,3.261508,3701.1,3699.5,4.50199]
[1718034538470,2.70208,3700.9,3699.5,4.50199]
[1718034538963,2.70222,3700.7,3699.5,4.50199]
[1718034539338,0.55,3700.6,3699.5,4.50199]
[1718034540292,2.70222,3700.7,3699.5,4.50199]
[1718034540450,0.270222,3700.6,3699.5,4.50199]
[1718034543210,0.270222,3700.6,3699.7,2.70285]
[1718034544867,3.0,3701.5,3699.7,2.70285]
[1718034544868,0.1242048,3701.6,3700.7,2.70216]
[1718034545884,0.1242048,3701.6,3701.0,2.70194]
[1718034546782,0.1242048,3701.6,3701.3,2.70173]
[1718034547200,0.1242048,3701.6,3701.3,5.37053]
[1718034547366,0.1242048,3701.6,3701.5,2.7016]
[1718034548608,0.1242048,3701.6,3701.1,2.70184]
[1718034549468,0.1242048,3701.6,3700.7,2.70215]
[1718034549711,2.7687,3701.5,3700.7,2.70215]
[1718034549932,3.3187,3701.5,3700.7,2.70215]
[1718034550078,0.61443748,3701.4,3700.7,2.70215]
[1718034551382,0.61443748,3701.4,3700.7,2.67615]
[1718034551981,2.70162,3701.5,3700.7,2.67615]
[1718034553091,0.1242048,3701.6,3700.7,2.67615]
[1718034554307,0.1242048,3701.6,3700.9,2.70197]
[1718034555681,0.1242048,3701.6,3701.1,2.70183]
[1718034556032,0.1242048,3701.6,3701.4,2.70166]
[1718034559366,0.1242048,3701.6,3701.4,2.971826]
[1718034561974,0.1242048,3701.6,3701.4,2.70166]
[1718034564344,0.1242048,3701.6,3701.1,2.70187]
[1718034565166,0.1242048,3701.6,3700.8,8.69508]
[1718034566282,2.9363048,3701.6,3700.8,8.69508]
[1718034566852,5.6378448,3701.6,3700.8,8.69508]
[1718034567083,0.56378448,3701.5,3700.8,8.69508]
[1718034567476,5.6378448,3701.6,3700.8,8.69508]
[1718034567702,2.8257448,3701.6,3700.8,8.69508]
[1718034568194,0.1242048,3701.6,3701.0,2.70193]
[1718034568942,0.1242048,3701.6,3701.2,2.70179]
[1718034569190,0.1242048,3701.6,3701.3,0.270179]
[1718034569341,0.1242048,3701.6,3701.4,2.70163]
[1718034570144,2.70057,3703.0,3701.5,1.799]
[1718034570494,2.70028,3703.4,3702.5,2.70085]
[1718034570706,0.270028,3703.3,3702.5,2.70085]
[1718034572709,0.270028,3703.3,3702.1,8.6941]
[1718034573485,2.70058,3702.9,3702.1,5.993]
[1718034574204,2.70058,3702.9,3701.7,2.70139]
[1718034574352,0.270058,3702.8,3701.7,2.70139]
[1718034576249,2.70058,3702.9,3702.0,2.70123]
[1718034582163,2.7004,3703.2,3702.0,2.70123]
[1718034582750,2.7004,3703.2,3702.2,2.70105]
[1718034583153,2.7004,3703.2,3702.4,2.70094]
[1718034583383,2.7004,3703.2,3701.7,0.38430104]
[1718034583384,2.70017,3703.5,3702.7,1.799]
[1718034583603,2.70017,3703.5,3702.7,2.248976]
[1718034583955,2.70017,3703.5,3702.7,0.449976]
[1718034584348,2.70017,3703.5,3702.6,2.70076]
[1718034585451,2.70017,3703.5,3702.3,8.69401]
[1718034588665,2.70017,3703.5,3702.3,2.70101]
[1718034589884,2.70037,3703.2,3702.3,2.70101]
[1718034590081,0.270037,3703.1,3702.3,2.70101]
[1718034590271,2.70017,3703.5,3702.6,2.7008]
[1718034593277,3.3465,3703.1,3701.9,5.993]
[1718034593621,0.55,3703.0,3701.7,2.7014]
[1718034593764,0.55,3703.0,3701.8,3.0]
[1718034594092,0.55,3703.0,3701.9,0.898]
[1718034594498,2.70051,3703.0,3702.0,2.70122]
[1718034597101,2.70051,3703.0,3701.6,5.70148]
[1718034597299,3.3465,3703.1,3701.6,5.70148]
[1718034597300,2.70066,3702.8,3701.6,2.70148]
[1718034597598,2.70084,3702.6,3701.6,2.70148]
[1718034598889,2.70095,3702.4,3701.2,2.70182]
[1718034601680,2.70116,3702.2,3701.2,2.70182]
[1718034601885,3.3507,3702.5,3701.0,0.29176935]
[1718034602091,3.0,3703.5,3701.1,0.62847694]
[1718034602290,3.129,3703.0,3701.1,0.62847694]
[1718034603808,2.70066,3702.8,3701.7,2.70145]
[1718034604509,2.70086,3702.6,3701.7,2.70145]
[1718034605231,4.928,3703.0,3701.4,2.70167]
[1718034605409,1.0428,3702.9,3701.4,2.70167]
[1718034605621,2.7012,3702.1,3701.1,2.70186]
[1718034605798,1.799,3702.6,3701.1,2.70186]
[1718034606110,2.70136,3701.9,3701.1,2.70186]
[1718034608071,2.70106,3702.3,3701.3,2.70171]
[1718034608273,2.70082,3702.6,3701.5,2.70155]
[1718034608467,2.70082,3702.6,3701.4,3.2385]
[1718034608706,2.70082,3702.6,3701.7,2.70142]
[1718034609010,2.70082,3702.6,3701.4,3.2385]
[1718034609011,2.70082,3702.6,3701.9,2.70128]
[1718034612023,2.70059,3702.9,3702.1,2.70113]
[1718034613019,2.70081,3702.6,3701.9,0.270128]
[1718034613209,2.70062,3702.9,3701.9,0.270128]
[1718034613520,2.70062,3702.9,3702.0,2.70122]
[1718034613713,2.70062,3702.9,3702.0,2.9983548]
[1718034618331,3.3676,3704.0,3702.6,2.70076]
[1718034619916,2.70019,3703.5,3702.6,2.70076]
[1718034624122,2.70019,3703.5,3702.3,6.08449]
[1718034624442,2.70019,3703.5,3702.4,0.46828204]
[1718034624648,2.70019,3703.5,3702.5,2.70087]
[1718034625114,2.70048,3703.1,3702.3,3.3835]
[1718034625326,2.69993,3703.8,3702.1,5.993]
[1718034625327,2.70069,3702.8,3702.1,5.993]
[1718034627016,2.70045,3703.1,3702.1,5.993]
[1718034627223,2.70045,3703.1,3702.2,2.70107]
[1718034632249,3.2828,3703.3,3701.8,0.56002322]
[1718034632437,0.55,3703.2,3701.8,3.0]
[1718034633607,2.70058,3702.9,3702.0,2.70119]
[1718034633948,2.70058,3702.9,3702.2,2.70108]
[1718034634163,2.7004,3703.2,3702.3,3.2189]
[1718034634357,2.7004,3703.2,3702.4,2.70094]
[1718034639242,2.7004,3703.2,3702.5,3.0]
[1718034641059,2.69986,3703.9,3702.5,3.0]
[1718034641060,2.70054,3703.0,3702.5,3.0]
[1718034641263,2.70054,3703.0,3702.5,0.46546884]
[1718034642635,2.70032,3703.3,3702.5,0.46546884]
[1718034644076,2.70045,3703.1,3702.4,3.0]
[1718034644368,2.70045,3703.1,3701.9,0.56002322]
[1718034644369,2.70063,3702.9,3701.9,5.91605]
[1718034644576,2.70063,3702.9,3702.0,3.0]
[1718034645460,2.70074,3702.7,3702.0,3.0]
[1718034646363,3.2771,3702.6,3701.6,0.56002322]
[1718034646563,2.70126,3702.0,3701.2,12.04407]
[1718034646878,2.70126,3702.0,3701.2,6.05107]
[1718034647443,2.70107,3702.3,3701.4,2.70165]
[1718034647738,2.70107,3702.3,3701.5,0.605095]
[1718034647939,2.7012,3702.1,3701.2,3.3493]
[1718034648853,2.70133,3701.9,3701.2,3.3493]
[1718034649273,2.70133,3701.9,3701.3,3.0]
[1718034649456,2.70133,3701.9,3701.2,3.3493]
[1718034649654,2.70096,3702.4,3700.8,2.70208]
[1718034649841,3.08367,3702.4,3700.8,2.70208]
[1718034650046,2.70157,3701.6,3700.8,2.70208]
[1718034650580,2.70135,3701.9,3701.0,2.70194]
[1718034650881,2.70091,3702.5,3701.7,2.70144]
[1718034651066,2.70069,3702.8,3702.1,2.70113]
[1718034651588,2.70047,3703.1,3702.1,2.70113]
[1718034652202,2.70025,3703.4,3702.3,1.799]
[1718034652641,2.70003,3703.7,3702.7,2.70068]
[1718034652850,2.70003,3703.7,3702.8,3.1104]
[1718034653054,2.70003,3703.7,3702.9,3.761008]
[1718034655587,2.70003,3703.7,3702.9,3.0]
[1718034655798,2.70003,3703.7,3702.8,3.0]
[1718034656294,2.70028,3703.4,3702.4,5.96554]
[1718034662000,2.70028,3703.4,3702.6,2.70074]
[1718034662560,2.70002,3703.7,3702.6,2.70074]
[1718034662866,2.70002,3703.7,3702.4,5.0636]
[1718034662867,2.70002,3703.7,3702.8,2.70062]
[1718034663988,2.70019,3703.5,3702.5,2.70084]
[1718034665107,2.70035,3703.3,3702.5,2.70084]
[1718034667502,2.70035,3703.3,3702.4,3.2646]
[1718034668118,2.70024,3703.4,3701.8,6.55302322]
[1718034668260,0.55,3703.3,3701.8,0.56002322]
[1718034668461,0.55,3703.3,3701.6,5.88489]
[1718034668799,2.70092,3702.5,3701.6,5.88489]
[1718034668993,2.70092,3702.5,3701.8,2.70137]
[1718034670417,2.70092,3702.5,3701.5,2.70158]
[1718034671009,2.70105,3702.3,3701.5,2.70158]
[1718034671367,5.99661,3702.9,3701.2,10.792]
[1718034671573,2.70123,3702.1,3701.3,3.0]
[1718034672278,2.70074,3702.7,3701.3,3.0]
[1718034672279,2.70135,3701.9,3701.3,3.0]
[1718034672611,2.70135,3701.9,3701.2,5.993]
[1718034673378,3.3896,3702.1,3701.2,5.993]
[1718034673379,2.70149,3701.7,3701.2,5.993]
[1718034673673,2.70149,3701.7,3700.9,3.0857]
[1718034674279,2.70149,3701.7,3701.0,2.70194]
[1718034675100,2.70149,3701.7,3700.9,3.0857]
[1718034676809,2.70166,3701.5,3700.6,11.69519]
[1718034677013,2.70166,3701.5,3700.7,3.0]
[1718034677581,2.70166,3701.5,3700.6,8.69519]
[1718034678087,2.70179,3701.3,3700.6,5.993]
[1718034679098,2.70209,3700.9,3700.1,5.99188]
[1718034680377,2.70209,3700.9,3700.2,3.0]
[1718034681793,2.70209,3700.9,3700.1,2.70258]
[1718034683001,2.70209,3700.9,3699.7,3.0]
[1718034683002,2.70223,3700.7,3699.8,2.70281]
[1718034683207,2.70223,3700.7,3699.9,3.0]
[1718034684120,2.70237,3700.5,3699.8,2.70281]
[1718034684724,2.70251,3700.3,3699.5,12.01763]
[1718034685226,2.70251,3700.3,3699.5,8.69603]
[1718034687137,2.70267,3700.1,3699.5,5.993]
[1718034687297,2.70311,3699.5,3698.9,5.993]
[1718034687497,0.270311,3699.4,3698.9,5.993]
[1718034687702,2.70311,3699.5,3698.9,5.993]
[1718034688432,2.70287,3699.8,3698.9,5.993]
[1718034689100,2.70304,3699.6,3698.9,5.993]
[1718034691331,2.70304,3699.6,3698.5,2.70377]
[1718034691533,2.70304,3699.6,3698.6,3.0]
[1718034691864,2.70304,3699.6,3698.7,0.570377]
[1718034693620,3.3911,3700.4,3699.3,1.799]
[1718034693880,2.70213,3700.8,3699.3,1.799]
[1718034693881,2.70258,3700.2,3699.5,2.70306]
[1718034694021,2.70258,3700.2,3699.5,3.15867146]
[1718034695117,2.70258,3700.2,3699.5,0.45561146]
[1718034695317,2.70274,3700.0,3699.2,2.70325]
[1718034695759,2.7025,3700.3,3699.4,2.7031]
[1718034696781,2.70227,3700.6,3699.7,2.70289]
[1718034698130,2.70247,3700.4,3699.4,4.50211]
[1718034699429,2.70262,3700.2,3699.4,4.50211]
[1718034702038,2.70262,3700.2,3699.4,2.70311]
[1718034702248,2.70221,3700.7,3699.1,12.09342]
[1718034702432,3.7848,3700.6,3699.1,5.993]
[1718034702643,3.2348,3700.4,3699.1,5.993]
[1718034703019,2.70303,3699.6,3698.8,2.70354]
[1718034703454,3.0873,3699.5,3698.8,2.70354]
[1718034703765,2.70281,3699.9,3699.1,3.3795]
[1718034704462,2.70281,3699.9,3699.2,0.608289]
[1718034704672,2.70281,3699.9,3699.1,3.3795]
[1718034704872,3.2458,3700.4,3699.2,2.70328]
[1718034705055,2.70252,3700.3,3699.6,4.50193]
[1718034706533,2.70221,3700.7,3699.9,2.70276]
[1718034706857,2.70236,3700.5,3699.9,2.70276]
[1718034707161,2.70236,3700.5,3699.7,3.2573]
[1718034707365,2.70253,3700.3,3699.7,3.2573]
[1718034708056,2.70253,3700.3,3699.7,5.96018]
[1718034708435,2.7023,3700.6,3699.7,5.96018]
[1718034709574,5.70151,3701.7,3700.2,2.70255]
[1718034709575,2.70193,3701.1,3700.2,2.70255]
[1718034712481,3.3602,3702.1,3700.4,2.70237]
[1718034712768,3.0,3702.0,3700.4,2.70237]
[1718034713844,2.70194,3701.1,3700.4,2.70237]
[1718034714049,2.70194,3701.1,3700.5,0.605767]
[1718034714371,2.70194,3701.1,3700.2,3.3553]
[1718034714534,2.70207,3700.9,3700.2,3.3553]
[1718034715328,2.70229,3700.6,3700.2,3.3553]
[1718034717379,2.70229,3700.6,3699.9,3.0]
[1718034717679,2.70243,3700.4,3699.9,3.63056]
[1718034717881,2.70243,3700.4,3699.9,3.0]
[1718034719174,2.70259,3700.2,3699.9,3.0]
[1718034719382,2.70197,3701.0,3699.5,5.993]
[1718034719682,2.70264,3700.1,3699.1,1.799]
[1718034720238,2.70246,3700.4,3699.1,1.799]
[1718034720461,2.70246,3700.4,3699.5,1.799]
[1718034721010,0.55,3700.9,3699.5,1.799]
[1718034721011,2.70258,3700.2,3699.5,1.799]
[1718034721598,2.70258,3700.2,3699.1,3.0]
[1718034721918,2.70258,3700.2,3699.5,2.70303]
[1718034722084,2.70258,3700.2,3699.6,3.0]
[1718034722287,2.70258,3700.2,3699.4,2.70311]
[1718034722508,2.70258,3700.2,3699.5,3.570311]
[1718034722706,2.70237,3700.5,3699.6,2.70295]
[1718034722902,2.70237,3700.5,3699.9,3.2001]
[1718034723107,2.70237,3700.5,3700.0,3.0]
[1718034723914,6.06196,3701.3,3700.0,5.70267]
[1718034723915,2.70215,3700.8,3700.0,5.70267]
[1718034724133,2.70194,3701.1,3700.0,5.26427684]
[1718034724506,7.28,3701.8,3700.0,5.26427684]
[1718034724507,2.70172,3701.4,3700.6,2.70222]
[1718034724665,2.7015,3701.7,3700.8,2.70208]
[1718034724966,2.7015,3701.7,3700.9,0.27561151]
[1718034725452,2.7015,3701.7,3701.0,2.70195]
[1718034727068,2.70166,3701.5,3700.7,2.70215]
[1718034727356,2.70166,3701.5,3700.8,0.570311]
[1718034728120,2.70117,3702.1,3701.4,1.799]
[1718034728640,6.635221,3702.8,3701.5,0.05402624]
[1718034728641,2.70096,3702.4,3701.5,0.05402624]
[1718034728846,2.70096,3702.4,3701.5,2.70159]
[1718034730770,2.70096,3702.4,3701.5,2.67559]
[1718034731074,2.70096,3702.4,3701.5,3.14086684]
[1718034731687,2.70096,3702.4,3701.7,2.7014]
[1718034732002,5.63123,3703.2,3701.7,2.7014]
[1718034732003,2.70074,3702.7,3701.7,2.7014]
[1718034732291,2.70074,3702.7,3701.9,2.70125]
[1718034732484,2.70051,3703.1,3702.1,2.70116]
[1718034732953,2.70068,3702.8,3702.1,2.70116]
[1718034733736,2.70068,3702.8,3701.8,2.70138]
[1718034734564,2.70068,3702.8,3702.0,2.70117]
[1718034734765,2.70068,3702.8,3702.1,0.270117]
[1718034735375,2.70044,3703.1,3702.2,2.70106]
[1718034735582,2.70044,3703.1,3702.4,1.799]
[1718034735837,2.70044,3703.1,3702.4,7.34288]
[1718034738461,0.31424,3703.4,3702.0,4.6424]
[1718034738682,2.70019,3703.5,3702.0,4.6424]
[1718034738683,0.851443,3703.3,3702.1,3.0]
[1718034738989,2.70078,3702.7,3702.1,3.0]
[1718034739468,2.9259,3703.1,3701.6,2.7581]
[1718034739651,3.25052,3703.0,3701.6,2.7581]
[1718034739846,2.70081,3702.6,3701.7,1.799]
[1718034740047,2.70059,3702.9,3701.8,5.45948]
[1718034740491,2.70059,3702.9,3702.1,1.799]
[1718034741681,2.70077,3702.7,3702.1,1.799]
[1718034741882,2.70091,3702.5,3701.8,2.7581]
[1718034742054,2.971001,3702.5,3701.8,2.7581]
[1718034742259,2.70068,3702.8,3701.8,2.7581]
[1718034743047,2.70068,3702.8,3701.8,5.45942]
[1718034743253,2.70084,3702.6,3701.8,2.7581]
[1718034746916,2.70101,3702.4,3701.8,2.7581]
[1718034747278,2.70101,3702.4,3701.5,5.993]
[1718034747502,2.70101,3702.4,3701.6,3.0]
[1718034748707,2.70114,3702.2,3701.5,5.993]
[1718034748878,2.8423,3702.7,3701.3,2.7795]
[1718034749073,1.1043,3702.6,3701.3,2.7795]
[1718034749470,2.70129,3702.0,3701.3,2.7795]
[1718034750508,2.70129,3702.0,3701.0,8.69493]
[1718034750814,2.70129,3702.0,3701.1,3.0]
[1718034752625,1.1043,3702.6,3701.3,1.799]
[1718034752626,2.70106,3702.3,3701.3,1.799]
[1718034752925,2.70106,3702.3,3701.5,2.7272]
[1718034753735,2.70063,3702.9,3701.7,1.799]
[1718034753935,2.70063,3702.9,3702.0,2.70118]
[1718034754102,2.70063,3702.9,3702.1,2.35468784]
[1718034754828,2.70063,3702.9,3702.2,2.70108]
[1718034755009,2.70004,3703.7,3702.2,2.70108]
[1718034755010,2.70041,3703.2,3702.2,2.70108]
[1718034755419,2.70004,3703.7,3702.1,1.799]
[1718034755620,2.70008,3703.6,3702.1,1.799]
[1718034755815,0.55,3703.5,3702.1,1.799]
[1718034756947,2.70058,3702.9,3702.1,1.799]
[1718034758353,2.70058,3702.9,3701.8,5.59066]
[1718034758865,0.55,3702.8,3701.8,2.8893]
[1718034759026,0.84746,3703.1,3701.8,2.8893]
[1718034759358,2.70069,3702.8,3701.9,2.7013]
[1718034759863,2.70083,3702.6,3701.8,2.8893]
[1718034760063,2.70083,3702.6,3701.8,5.59064]
[1718034760432,2.7006,3702.9,3701.8,5.59064]
[1718034760654,2.70082,3702.6,3701.8,5.59064]
[1718034762365,0.29746,3703.1,3701.8,5.59064]
[1718034762366,2.70061,3702.9,3701.8,5.59064]
[1718034762742,2.70078,3702.7,3701.8,5.59064]
[1718034762945,2.970858,3702.7,3701.8,5.59064]
[1718034763130,2.70091,3702.5,3701.5,2.70158]
[1718034767286,2.70091,3702.5,3701.7,2.70138]
[1718034767599,2.7007,3702.8,3701.9,2.70128]
[1718034767788,2.7007,3702.8,3702.0,2.8288]
[1718034768087,2.7007,3702.8,3702.1,2.70111]
[1718034768986,2.70049,3703.1,3702.1,2.70111]
[1718034772476,2.7006,3702.9,3702.1,2.70111]
[1718034774088,2.70035,3703.3,3702.3,2.70095]
[1718034774278,2.970385,3703.3,3702.3,2.70095]
[1718034774713,0.270035,3703.3,3702.3,2.70095]
[1718034775008,2.8653,3703.7,3702.3,2.70095]
[1718034775009,2.70046,3703.1,3702.3,2.70095]
[1718034779218,2.7006,3702.9,3702.0,2.7012]
[1718034779501,2.70071,3702.8,3702.0,2.7012]
[1718034781001,2.70082,3702.6,3702.0,2.7012]
[1718034782122,2.70082,3702.6,3701.9,2.7621]
[1718034782320,2.970902,3702.6,3701.9,2.7621]
[1718034782520,2.970902,3702.6,3701.7,10.4934]
[1718034782738,2.970902,3702.6,3701.8,3.0]
[1718034785746,2.970902,3702.6,3701.9,2.70131]
[1718034785953,2.70082,3702.6,3701.9,2.70131]
[1718034786964,2.70082,3702.6,3701.8,3.0]
[1718034788031,2.70096,3702.4,3701.8,3.0]
[1718034788230,2.70096,3702.4,3701.7,3.0]
[1718034792661,5.54798,3703.0,3701.5,2.70156]
[1718034792862,1.104798,3702.9,3701.5,2.70156]
[1718034793026,0.749,3702.6,3701.7,0.749]
[1718034793733,2.70119,3702.1,3701.2,8.69478]
[1718034793942,2.70119,3702.1,3701.5,0.749]
[1718034794136,2.70119,3702.1,3701.3,0.749]
[1718034794336,2.70119,3702.1,3701.5,0.749]
[1718034794549,2.70119,3702.1,3701.7,0.749]
[1718034794947,2.70119,3702.1,3701.4,2.70164]
[1718034801079,2.7002,3703.5,3702.2,2.70103]
[1718034801237,2.69986,3703.9,3702.9,2.5819]
[1718034801441,2.3588,3704.5,3703.0,5.70051]
[1718034801442,2.69961,3704.3,3703.0,5.70051]
[1718034801643,2.69961,3704.3,3703.0,6.47387999]
[1718034802041,2.69961,3704.3,3703.0,5.70051]
[1718034802561,2.69981,3704.0,3703.0,5.70051]
[1718034805398,2.69981,3704.0,3702.9,2.5819]
[1718034805399,2.69981,3704.0,3702.9,2.70053]
[1718034805996,2.69981,3704.0,3702.9,4.49753]
[1718034806446,2.70025,3703.4,3702.2,2.35702322]
[1718034806646,2.70025,3703.4,3702.2,1.797]
[1718034807359,2.69999,3703.8,3702.7,2.70071]
[1718034809497,2.69999,3703.8,3702.9,2.70052]
[1718034809793,1.827,3704.8,3703.1,2.70041]
[1718034809794,2.69967,3704.2,3703.1,2.70041]
[1718034811259,2.69967,3704.2,3703.3,2.70023]
[1718034817093,2.69986,3703.9,3703.3,2.70023]
[1718034820202,2.69986,3703.9,3703.0,2.70048]
[1718034820720,2.5201,3704.4,3702.7,5.70069]